{"text_format":"3","workbook":"xlsx","n_sheets":2,"sheets":["Lista de comprobación hijo 1","Información de emergencia"],"not_rendered":{"images":2,"defined_names":3},"read":"whole","date_system":"1900"}

{"sheet":"Lista de comprobación hijo 1","index":0,"n_rows":38,"n_cols":13,"rows_kept":38,"merged":[[1,1,2,5],[4,2,4,6],[4,7,4,11],[30,1,30,12]]}
[]
[null,"Lista de comprobación de la niñera",{"$nulls":9},"NOMBRE DEL NIÑO:","DIEGO"]
[{"$nulls":11},"HORA DE INICIO DE LA LISTA DE COMPROBACIÓN:","07:00:00"]
[{"$nulls":11},"INTERVALO (MINUTOS)):",60]
[null,"PROGRAMACIÓN","COMIDAS Y CUIDADO PERSONAL",{"$nulls":4},"ENTRETENIMIENTO Y OTROS (REGISTRAR MINUTOS) ",{"$nulls":4},"OTROS"]
[null,"Hora","Comida o merienda","Botella o bebida","Lavar los dientes","Cambiar pañales","Bañar","Exterior","Interior","Libros","Televisión","Siesta o cama","Notas"]
[null,{"$f":"HoraInicio","v":"07:00:00"}]
[null,{"$f":"B7+TIME(0,Intervalo,0)","v":"08:00:00"}]
[null,{"$f":"B8+TIME(0,Intervalo,0)","v":"09:00:00"}]
[null,"10:00:00"]
[null,"11:00:00"]
[null,"12:00:00"]
[null,"13:00:00"]
[null,"14:00:00"]
[null,"15:00:00"]
[null,"16:00:00"]
[null,"17:00:00"]
[null,"18:00:00"]
[null,"19:00:00"]
[null,"20:00:00"]
[null,"21:00:00"]
[null,"22:00:00"]
[null,"23:00:00"]
[null,0.9999999999999997]
[null,1.0416666666666663]
[null,1.083333333333333]
[null,1.1249999999999998]
[null,1.1666666666666665]
[null,1.2083333333333333]
[null,1.25]
[]
[null,{"$f":"\"INSTRUCCIONES ESPECIALES PARA \"&NombreHijo","v":"INSTRUCCIONES ESPECIALES PARA DIEGO"}]
[null,{"$f":"\"Qué puede comer \" & PROPER(NombreHijo)& \" y cuándo:\"","v":"Qué puede comer Diego y cuándo:"}]
[null,{"$f":"\"Qué no puede comer \" & PROPER(NombreHijo)& \":\"","v":"Qué no puede comer Diego:"}]
[null,{"$f":"\"Vídeojuegos y programas de TV autorizados para \"&PROPER(NombreHijo)&\":\"","v":"Vídeojuegos y programas de TV autorizados para Diego:"}]
[null,{"$f":"\"La hora de dormir de \"&PROPER(NombreHijo)&\" es:\"","v":"La hora de dormir de Diego es:"}]
[null,{"$f":"\"Cosas que \"&PROPER(NombreHijo)&\" no puede hacer:\"","v":"Cosas que Diego no puede hacer:"}]
[null,{"$f":"\"En caso de problemas de disciplina con \"&PROPER(NombreHijo)&\":\"","v":"En caso de problemas de disciplina con Diego:"}]

{"sheet":"Información de emergencia","index":1,"n_rows":31,"n_cols":5,"rows_kept":31,"merged":[[14,1,14,3],[15,1,15,3],[25,1,25,3],[31,1,31,3]]}
[{"$nulls":4}," "]
[null,"Información de emergencia"]
[null,"INFORMACIÓN DE CONTACTO"]
[null,"Mi ubicación y teléfono","Casa de Vanessa García, teléfono: 555-0134"]
[null,"Hora de llegada a casa:","19:00:00"]
[null,"Contacto y teléfono alternativos:","Jorge Navarro (abuelo), teléfono: 555-0187"]
[null,"Dirección de urgencias:","Calle Princesa, 123 Madrid"]
[null,"Intersección principal más cercana:","Avenida España y Calle Pirineos"]
[null,"Nombre y teléfono de vecino:","Pilar Pinilla Gallego, teléfono: 555-0176"]
[]
[null,"FORMULARIO DE AUTORIZACIÓN PARA TRATAMIENTOS DE URGENCIAS"]
[null,"NOMBRE DEL NIÑO","FECHA DE NACIMIENTO","AFECTACIONES MÉDICAS CONOCIDAS, ALERGIAS A ALIMENTOS/MEDICAMENTOS, MEDICAMENTOS (CON Y SIN RECETA), ETC:"]
[null,"Tomas Navarro","2001-03-30","Ninguno"]
[null,"Cecilia Cornejo","1997-03-28","Alergia a la penicilina"]
[]
[null,"Los médicos, dentistas u hospitales pueden proporcionar los servicios de urgencias necesarios a mis hijos que se indican anteriormente a"]
[null,"petición de la persona portadora de este formulario de consentimiento."]
[]
[null,"Fecha",null,"Firma padre o tutor legal"]
[]
[null,"INFORMACIÓN MÉDICA"]
[null,"NOMBRE TIPO/MÉDICO","TELÉFONO","DIRECCIÓN"]
[null,"Dentista: Dr. Juan","911 123 123","Calle Salamanca 123, Madrid"]
[null,"Médico: Dr. Noriega","911 123 456","Calle Andalucía, 123, Madrid"]
[null,"Ortodontista: Dr. Casazza","911 456 789","Calle Colón, 123, Chatham"]
[]
[null,"INFORMACIÓN DE SEGUROS"]
[null,"PROVEEDOR","N.º CONTRATO","NOMBRE DEL ASEGURADO"]
[null,"Médico","987687-88776","Diego Navarro"]
[null,"Dentista","09877UT9U","Diego Navarro"]
[null,"Medicamentos recetados","7658007 99","Diego Navarro"]